[Event "98th Caplin Hastings Masters 2024-25"]
[Site "Hastings"]
[Date "2024.12.29"]
[Round "3.46"]
[White "Kolani, Arjun"]
[Black "Keely, Leo A"]
[Result "1-0"]
[ECO "B76"]
[WhiteElo "2131"]
[BlackElo "1899"]
[Annotator "RC"]
[PlyCount "94"]
[EventDate "2024.12.23"]
[EventType "swiss"]
[EventCountry "ENG"]
[SourceTitle "playchess.com"]
[Source "ChessBase"]
[SourceQuality "1"]
[TimeControl "5400+30"]

1. e4 {[%emt 0:00:04]} c5 {[%emt 0:00:07]} 2. Nf3 {[%emt 0:00:06]} d6 {[%emt 0:04:23]} 3. d4 {[%emt 0:00:26]} cxd4 {[%emt 0:00:11]} 4. Nxd4 {[%emt 0:00:03]} Nf6 {[%emt 0:00:16]} 5. Nc3 {[%emt 0:00:05]} g6 {[%emt 0:00:44]} 6. Be3 {[%emt 0:00:18]} Bg7 {[%emt 0:00:16]} 7. f3 {[%emt 0:01:23]} O-O {[%emt 0:00:55]} 8. Qd2 {[%emt 0:00:09]} Nc6 {[%emt 0:00:21]} 9. O-O-O {[%emt 0:00:10]} d5 {[%emt 0:04:08]} 10. exd5 {[%emt 0:02:20]} Nxd5 {[%emt 0:01:51]} 11. Nxc6 {[%emt 0:00:38]} bxc6 {[%emt 0:00:09]} 12. Bd4 {[%emt 0:00:10]} Bxd4 {[%emt 0:12:38]} 13. Qxd4 {[%emt 0:01:04]} Be6 {[%emt 0:02:33]} 14. Ne4 {[%emt 0:08:51]} Qa5 {[%emt 0:03:02]} 15. a3 {[%emt 0:06:26]} Nc7 {[%emt 0:10:14]} 16. Bc4 {[%emt 0:30:31]} Bd5 {[%emt 0:19:35]} 17. Bd3 {[%emt 0:08:28]} Ne6 {[%emt 0:02:58]} 18. Qe3 {[%emt 0:00:19]} c5 {[%emt 0:01:44]} 19. Nc3 {[%emt 0:00:40]} Bc6 {[%emt 0:00:43]} 20. Bc4 {[%emt 0:00:49]} Nd4 {[%emt 0:02:09]} 21. Qxe7 {[%emt 0:02:41]} Rab8 {[%emt 0:00:48]} 22. Ne4 {[%emt 0:13:10]} Bxe4 {[%emt 0:01:19]} 23. Qxe4 {[%emt 0:01:42]} Rb6 {[%emt 0:06:03]} 24. Qd5 {[%emt 0:09:29]} Nf5 {[%emt 0:25:23]} 25. Rhe1 {[%emt 0:00:51]} Rd6 {[%emt 0:00:00]} 26. Qe5 {[%emt 0:01:29]} Rd4 {[%emt 0:00:00]} 27. g4 {[%emt 0:06:49]} Rxc4 {[%emt 0:00:00]} 28. gxf5 {[%emt 0:00:10]} Qb6 {[%emt 0:00:00]} 29. Re4 {[%emt 0:02:10]} Rxe4 {[%emt 0:00:00]} 30. fxe4 {[%emt 0:01:04]} c4 {[%emt 0:00:00]} 31. f6 {[%emt 0:01:57]} Qe3+ {[%emt 0:00:00]} 32. Kb1 {[%emt 0:00:12]} c3 {[%emt 0:00:00]} 33. Qxc3 {[%emt 0:00:20]} Qxc3 {[%emt 0:00:00]} 34. bxc3 {[%emt 0:00:07]} h5 {[%emt 0:00:00]} 35. Rd7 {[%emt 0:00:55]} a6 {[%emt 0:00:01]} 36. Kb2 {[%emt 0:00:23]} Re8 {[%emt 0:00:05]} 37. Re7 {[%emt 0:00:07]} Rb8+ {[%emt 0:00:17]} 38. Kc1 {[%emt 0:00:04]} h4 {[%emt 0:01:50]} 39. h3 {[%emt 0:00:58]} Rc8 {[%emt 0:00:09]} 40. Kd2 {[%emt 0:00:05]} Rb8 {[%emt 0:00:04]} 41. c4 {[%emt 0:00:44]} Rb1 {[%emt 0:00:05]} 42. c5 {[%emt 0:00:19]} Rh1 {[%emt 0:02:15]} 43. c6 {[%emt 0:00:51]} Rh2+ {[%emt 0:00:05]} 44. Kc1 {[%emt 0:00:40]} Rxh3 {[%emt 0:00:20]} 45. Kb2 {[%emt 0:00:23]} Rf3 {[%emt 0:01:34]} 46. c7 {[%emt 0:00:06]} Rxf6 {[%emt 0:00:07]} 47. c8=Q+ {[%emt 0:00:07]} Kg7 {[%emt 0:00:06]} 1-0

[Event "98th Caplin Hastings Masters 2024-25"]
[Site "Hastings"]
[Date "2024.12.29"]
[Round "3.47"]
[White "Buckland, Louis"]
[Black "Fryer, David W"]
[Result "1-0"]
[ECO "A80"]
[WhiteElo "1856"]
[BlackElo "1928"]
[Annotator "NA RC"]
[PlyCount "47"]
[EventDate "2024.12.23"]
[EventType "swiss"]
[EventCountry "ENG"]
[SourceTitle "playchess.com"]
[Source "ChessBase"]
[SourceQuality "1"]
[TimeControl "5400+30"]

1. d4 {[%emt 0:00:03]} f5 {[%emt 0:00:08]} 2. Bg5 {[%emt 0:00:03]} h6 {[%emt 0:00:26]} 3. Bh4 {[%emt 0:00:02]} g5 {[%emt 0:01:14]} 4. e3 {[%emt 0:00:06]} Nf6 {[%emt 0:01:10]} 5. Bg3 {[%emt 0:00:02]} d6 {[%emt 0:03:16]} 6. Nc3 {[%emt 0:00:06]} Bg7 {[%emt 0:06:09]} 7. h4 {[%emt 0:00:09]} g4 {[%emt 0:02:31]} 8. Nge2 {[%emt 0:00:10]} Nh5 {[%emt 0:08:03]} 9. Nf4 {[%emt 0:00:59]} Nxg3 {[%emt 0:07:24]} 10. fxg3 {[%emt 0:00:03]} h5 {[%emt 0:01:13]} 11. Bc4 {[%emt 0:05:03]} Rh6 {[%emt 0:00:43]} 12. Qd2 {[%emt 0:05:31]} c6 {[%emt 0:03:14]} 13. d5 {[%emt 0:11:39]} e5 {[%emt 0:11:25]} 14. dxe6 {[%emt 0:01:27]} Be5 {[%emt 0:02:47]} 15. e4 {[%emt 0:16:18]} fxe4 {[%emt 0:05:23]} 16. O-O-O {[%emt 0:03:17]} d5 {[%emt 0:19:39]} 17. Nfxd5 {[%emt 0:11:14]} Rxe6 {[%emt 0:00:30]} 18. Nf4 {[%emt 0:01:14]} Qxd2+ {[%emt 0:07:47]} 19. Rxd2 {[%emt 0:02:07]} Bxc3 {[%emt 0:03:25]} 20. Bxe6 {[%emt 0:02:23]} Bxd2+ {[%emt 0:00:17]} 21. Kxd2 {[%emt 0:00:02]} Bxe6 {[%emt 0:01:13]} 22. Nxe6 {[%emt 0:00:03]} Na6 {[%emt 0:00:36]} 23. a3 {[%emt 0:02:37]} Ke7 {[%emt 0:02:27]} 24. Nf4 {[%emt 0:01:15]} 1-0

[Event "98th Caplin Hastings Masters 2024-25"]
[Site "Hastings"]
[Date "2024.12.29"]
[Round "3.48"]
[White "Vaidyanathan, Sathya"]
[Black "Butt, Laurence"]
[Result "1/2-1/2"]
[ECO "B23"]
[WhiteElo "1908"]
[BlackElo "1818"]
[Annotator "RC"]
[PlyCount "82"]
[EventDate "2024.12.23"]
[EventType "swiss"]
[EventCountry "ENG"]
[SourceTitle "playchess.com"]
[Source "ChessBase"]
[SourceQuality "1"]
[TimeControl "5400+30"]

1. e4 {[%emt 0:00:03]} c5 {[%emt 0:07:09]} 2. Nc3 {[%emt 0:00:05]} g6 {[%emt 0:00:09]} 3. d4 {[%emt 1:31:52]} b6 {[%emt 0:01:22]} 4. dxc5 {[%emt 0:00:00]} bxc5 {[%emt 0:00:52]} 5. Qd5 {[%emt 0:00:00]} Nc6 {[%emt 0:01:03]} 6. Qxc5 {[%emt 0:00:00]} Bg7 {[%emt 1:22:55]} 7. Bd2 {[%emt 0:00:00]} Rb8 {[%emt 0:00:00]} 8. Nf3 {[%emt 0:00:00]} Nf6 {[%emt 0:00:00]} 9. Bd3 {[%emt 0:00:00]} O-O {[%emt 0:00:00]} 10. O-O {[%emt 0:00:00]} a6 {[%emt 0:00:00]} 11. Rab1 {[%emt 0:00:00]} Qe8 {[%emt 0:00:00]} 12. h3 {[%emt 0:00:00]} d6 {[%emt 0:00:00]} 13. Qe3 {[%emt 0:00:00]} Nd7 {[%emt 0:00:00]} 14. a3 {[%emt 0:00:00]} Nde5 {[%emt 0:00:00]} 15. Nxe5 {[%emt 0:00:00]} Bxe5 {[%emt 0:00:00]} 16. Qe1 {[%emt 0:00:00]} Bg7 {[%emt 0:00:00]} 17. f4 {[%emt 0:00:00]} f5 {[%emt 0:05:30]} 18. b4 {[%emt 0:00:00]} Nd4 {[%emt 0:00:00]} 19. Ne2 {[%emt 0:00:00]} Bb7 {[%emt 0:00:00]} 20. Nxd4 {[%emt 0:00:00]} Bxd4+ {[%emt 0:00:00]} 21. Be3 {[%emt 0:00:00]} Bg7 {[%emt 0:00:00]} 22. exf5 {[%emt 0:00:00]} gxf5 {[%emt 0:00:00]} 23. Qf2 {[%emt 0:00:00]} Rf6 {[%emt 0:00:00]} 24. Be2 {[%emt 0:00:00]} e5 {[%emt 0:00:00]} 25. c4 {[%emt 0:00:00]} Be4 {[%emt 0:00:00]} 26. Rbc1 {[%emt 0:00:00]} Qa4 {[%emt 0:00:00]} 27. c5 {[%emt 0:00:00]} Qxa3 {[%emt 0:00:00]} 28. c6 {[%emt 0:00:00]} Rg6 {[%emt 0:00:00]} 29. Bf3 {[%emt 0:00:00]} Qxb4 {[%emt 0:00:00]} 30. c7 {[%emt 0:00:00]} Rc8 {[%emt 0:00:00]} 31. Qa2+ {[%emt 0:00:00]} d5 {[%emt 0:00:00]} 32. Bc5 {[%emt 0:01:56]} Qb7 {[%emt 0:00:00]} 33. Bxe4 {[%emt 0:00:49]} fxe4 {[%emt 0:00:00]} 34. fxe5 {[%emt 0:04:40]} Rxc7 {[%emt 0:00:00]} 35. Bd6 {[%emt 0:01:37]} Rxc1 {[%emt 0:00:00]} 36. Rxc1 {[%emt 0:00:01]} Bh6 {[%emt 0:00:00]} 37. Rc7 {[%emt 0:01:26]} Be3+ {[%emt 0:00:00]} 38. Kh1 {[%emt 0:00:39]} Qb5 {[%emt 0:00:00]} 39. Rc8+ {[%emt 0:01:54]} Kg7 {[%emt 0:00:00]} 40. Rc7+ {[%emt 0:01:40]} Kg8 {[%emt 0:00:00]} 41. Rc8+ {[%emt 0:00:18]} Kg7 {[%emt 0:00:00]} 1/2-1/2

[Event "98th Caplin Hastings Masters 2024-25"]
[Site "Hastings"]
[Date "2024.12.29"]
[Round "3.49"]
[White "Miller, Daniel"]
[Black "Ruane, Brendan J"]
[Result "1-0"]
[ECO "A04"]
[WhiteElo "2093"]
[BlackElo "1869"]
[Annotator "RC"]
[PlyCount "71"]
[EventDate "2024.12.23"]
[EventType "swiss"]
[EventCountry "ENG"]
[SourceTitle "playchess.com"]
[Source "ChessBase"]
[SourceQuality "1"]
[TimeControl "5400+30"]

1. Nf3 {[%emt 0:00:33]} g6 {[%emt 0:01:28]} 2. h4 {[%emt 0:00:26]} h6 {[%emt 0:01:36]} 3. e4 {[%emt 0:00:40]} d6 {[%emt 0:00:35]} 4. d4 {[%emt 0:01:02]} Bg7 {[%emt 0:00:21]} 5. Be3 {[%emt 0:01:22]} Nf6 {[%emt 0:04:25]} 6. Nbd2 {[%emt 0:00:38]} a6 {[%emt 0:05:36]} 7. Bd3 {[%emt 0:09:21]} Ng4 {[%emt 0:06:29]} 8. Qe2 {[%emt 0:01:52]} Nxe3 {[%emt 0:03:31]} 9. Qxe3 {[%emt 0:00:11]} c5 {[%emt 0:00:45]} 10. c3 {[%emt 0:00:27]} Nd7 {[%emt 0:02:13]} 11. h5 {[%emt 0:11:57]} g5 {[%emt 0:00:32]} 12. Nf1 {[%emt 0:02:15]} Qb6 {[%emt 0:17:52]} 13. Ng3 {[%emt 0:02:19]} Qxb2 {[%emt 0:07:37]} 14. O-O {[%emt 0:00:06]} cxd4 {[%emt 0:03:22]} 15. cxd4 {[%emt 0:02:17]} Qb6 {[%emt 0:04:00]} 16. Nf5 {[%emt 0:01:46]} Bf6 {[%emt 0:00:16]} 17. Rab1 {[%emt 0:01:55]} Qa7 {[%emt 0:00:14]} 18. Qe1 {[%emt 0:03:21]} g4 {[%emt 0:01:44]} 19. e5 {[%emt 0:01:21]} dxe5 {[%emt 0:05:11]} 20. dxe5 {[%emt 0:06:16]} gxf3 {[%emt 0:15:03]} 21. exf6 {[%emt 0:06:18]} Qc5 {[%emt 0:00:06]} 22. Qxe7+ {[%emt 0:16:55]} Qxe7 {[%emt 0:00:08]} 23. fxe7 {[%emt 0:00:08]} Ne5 {[%emt 0:02:36]} 24. Nd6+ {[%emt 0:06:07]} Kxe7 {[%emt 0:00:17]} 25. Nxc8+ {[%emt 0:00:26]} Raxc8 {[%emt 0:00:13]} 26. Rxb7+ {[%emt 0:23:31]} Kf6 {[%emt 0:00:23]} 27. Be4 {[%emt 0:00:00]} Rhg8 {[%emt 0:03:51]} 28. Rb6+ {[%emt 0:00:00]} Kg5 {[%emt 0:00:52]} 29. Rxa6 {[%emt 0:00:00]} Kxh5 {[%emt 0:01:09]} 30. Ra5 {[%emt 0:00:00]} Rg5 {[%emt 0:01:34]} 31. g3 {[%emt 0:00:00]} Rc4 {[%emt 0:02:09]} 32. Re1 {[%emt 0:00:00]} f6 {[%emt 0:00:47]} 33. Ra6 {[%emt 0:00:00]} f5 {[%emt 0:03:50]} 34. Bd5 {[%emt 0:00:00]} Rc2 {[%emt 0:00:15]} 35. Rxe5 {[%emt 0:00:00]} Rc1+ {[%emt 0:00:06]} 36. Kh2 {[%emt 0:00:00]} 1-0

[Event "98th Caplin Hastings Masters 2024-25"]
[Site "Hastings"]
[Date "2024.12.29"]
[Round "3.50"]
[White "Bryant, Marc A"]
[Black "Han, Yongsu"]
[Result "1/2-1/2"]
[ECO "A00"]
[WhiteElo "1825"]
[BlackElo "1718"]
[Annotator "NA RC"]
[PlyCount "200"]
[EventDate "2024.12.23"]
[EventType "swiss"]
[EventCountry "ENG"]
[SourceTitle "playchess.com"]
[Source "ChessBase"]
[SourceQuality "1"]
[TimeControl "5400+30"]

1. g4 {[%emt 0:00:51]} d5 {[%emt 0:00:20]} 2. Bg2 {[%emt 0:00:06]} Bxg4 {[%emt 0:00:51]} 3. c4 {[%emt 0:00:10]} e6 {[%emt 0:01:14]} 4. Nc3 {[%emt 0:03:28]} Nf6 {[%emt 0:01:35]} 5. cxd5 {[%emt 0:01:47]} exd5 {[%emt 0:00:25]} 6. Qb3 {[%emt 0:00:24]} Nc6 {[%emt 0:01:10]} 7. Nxd5 {[%emt 0:01:20]} Nxd5 {[%emt 0:01:32]} 8. Bxd5 {[%emt 0:00:23]} Na5 {[%emt 0:04:57]} 9. Bxf7+ {[%emt 0:08:40]} Ke7 {[%emt 0:00:32]} 10. Qb4+ {[%emt 0:03:39]} Kxf7 {[%emt 0:01:38]} 11. Qxg4 {[%emt 0:00:20]} Qf6 {[%emt 0:09:04]} 12. Qh5+ {[%emt 0:04:05]} Qg6 {[%emt 0:01:14]} 13. Qxa5 {[%emt 0:00:17]} Qg2 {[%emt 0:00:22]} 14. Qf5+ {[%emt 0:00:06]} Ke8 {[%emt 0:01:21]} 15. Qf3 {[%emt 0:00:09]} Qg6 {[%emt 0:01:20]} 16. Qxb7 {[%emt 0:01:42]} Rd8 {[%emt 0:00:35]} 17. Qb5+ {[%emt 0:02:15]} c6 {[%emt 0:01:22]} 18. Qe5+ {[%emt 0:00:39]} Be7 {[%emt 0:00:16]} 19. Nf3 {[%emt 0:00:47]} Rd5 {[%emt 0:06:08]} 20. Qb8+ {[%emt 0:03:00]} Bd8 {[%emt 0:01:05]} 21. Rg1 {[%emt 0:00:20]} Qe6 {[%emt 0:03:41]} 22. Qxa7 {[%emt 0:01:07]} Rf8 {[%emt 0:02:08]} 23. Qe3 {[%emt 0:00:41]} Qxe3 {[%emt 0:01:10]} 24. fxe3 {[%emt 0:00:28]} Bf6 {[%emt 0:01:42]} 25. Rg4 {[%emt 0:00:50]} Rb5 {[%emt 0:00:56]} 26. Nd4 {[%emt 0:00:22]} Rh5 {[%emt 0:01:02]} 27. Rg2 {[%emt 0:01:07]} c5 {[%emt 0:02:11]} 28. Ne6 {[%emt 0:00:43]} Rf7 {[%emt 0:00:24]} 29. Kd1 {[%emt 0:02:10]} Rf5 {[%emt 0:02:48]} 30. a4 {[%emt 0:01:59]} Rb7 {[%emt 0:01:38]} 31. Ra2 {[%emt 0:01:22]} Kf7 {[%emt 0:02:15]} 32. Nf4 {[%emt 0:00:47]} Rb4 {[%emt 0:00:48]} 33. Nd3 {[%emt 0:01:02]} Rf1+ {[%emt 0:01:29]} 34. Kc2 {[%emt 0:00:46]} Rc4+ {[%emt 0:00:16]} 35. Kb3 {[%emt 0:00:51]} Rh4 {[%emt 0:01:08]} 36. Nxc5 {[%emt 0:04:18]} Rxc1 {[%emt 0:00:30]} 37. d4 {[%emt 0:00:14]} Be7 {[%emt 0:01:35]} 38. Rf2+ {[%emt 0:00:42]} Ke8 {[%emt 0:01:58]} 39. Ne6 {[%emt 0:01:25]} Rh3 {[%emt 0:07:42]} 40. Nxg7+ {[%emt 0:00:27]} Kd7 {[%emt 0:00:05]} 41. Nf5 {[%emt 0:00:21]} Bf8 {[%emt 0:01:31]} 42. a5 {[%emt 0:01:59]} Bh6 {[%emt 0:01:19]} 43. Nxh6 {[%emt 0:02:10]} Rxh6 {[%emt 0:00:06]} 44. Ra4 {[%emt 0:00:38]} Ke7 {[%emt 0:03:31]} 45. Rc4 {[%emt 0:00:21]} Ra1 {[%emt 0:01:04]} 46. Rc5 {[%emt 0:00:21]} Rh3 {[%emt 0:02:46]} 47. Re5+ {[%emt 0:00:19]} Kd6 {[%emt 0:00:07]} 48. Kb4 {[%emt 0:01:04]} Rh6 {[%emt 0:01:14]} 49. e4 {[%emt 0:00:59]} Rh3 {[%emt 0:01:59]} 50. Rb5 {[%emt 0:02:00]} Ra2 {[%emt 0:02:31]} 51. Rb6+ {[%emt 0:00:19]} Ke7 {[%emt 0:01:22]} 52. b3 {[%emt 0:01:48]} Rh4 {[%emt 0:03:34]} 53. a6 {[%emt 0:02:09]} Rxe4 {[%emt 0:01:51]} 54. Rb7+ {[%emt 0:01:35]} Ke6 {[%emt 0:00:44]} 55. a7 {[%emt 0:01:03]} Rxd4+ {[%emt 0:01:35]} 56. Kc3 {[%emt 0:00:14]} Rd6 {[%emt 0:02:10]} 57. Rf8 {[%emt 0:01:02]} Rda6 {[%emt 0:00:50]} 58. a8=Q {[%emt 0:00:58]} Rxa8 {[%emt 0:00:15]} 59. Rxa8 {[%emt 0:00:09]} Rxa8 {[%emt 0:00:04]} 60. Rxh7 {[%emt 0:00:11]} Rc8+ {[%emt 0:01:20]} 61. Kb2 {[%emt 0:00:05]} Rd8 {[%emt 0:00:13]} 62. Kc3 {[%emt 0:00:43]} Rc8+ {[%emt 0:00:12]} 63. Kd3 {[%emt 0:00:10]} Rd8+ {[%emt 0:00:24]} 64. Ke4 {[%emt 0:00:06]} Rb8 {[%emt 0:00:25]} 65. Rh6+ {[%emt 0:00:05]} Ke7 {[%emt 0:00:18]} 66. Rh3 {[%emt 0:01:04]} Ke6 {[%emt 0:01:46]} 67. Rd3 {[%emt 0:01:20]} Rh8 {[%emt 0:00:26]} 68. h3 {[%emt 0:00:21]} Rh4+ {[%emt 0:00:07]} 69. Kf3 {[%emt 0:01:30]} Rxh3+ {[%emt 0:00:08]} 70. Kg4 {[%emt 0:00:05]} Rh8 {[%emt 0:01:30]} 71. e4 {[%emt 0:00:52]} Ke5 {[%emt 0:01:21]} 72. Kf3 {[%emt 0:01:00]} Rh3+ {[%emt 0:00:17]} 73. Ke2 {[%emt 0:00:06]} Rh2+ {[%emt 0:00:03]} 74. Ke3 {[%emt 0:00:23]} Rh3+ {[%emt 0:00:05]} 75. Kd2 {[%emt 0:00:07]} Rh4 {[%emt 0:00:18]} 76. Re3 {[%emt 0:00:36]} Kd4 {[%emt 0:00:36]} 77. e5 {[%emt 0:02:09]} Rh2+ {[%emt 0:00:31]} 78. Re2 {[%emt 0:00:06]} Rxe2+ {[%emt 0:00:06]} 79. Kxe2 {[%emt 0:00:43]} Kxe5 {[%emt 0:00:05]} 80. Kd1 {[%emt 0:01:17]} Kd4 {[%emt 0:00:29]} 81. Kc2 {[%emt 0:00:11]} Kc5 {[%emt 0:00:05]} 82. Kc3 {[%emt 0:00:29]} Kb5 {[%emt 0:00:05]} 83. b4 {[%emt 0:00:47]} Kb6 {[%emt 0:00:04]} 84. Kc4 {[%emt 0:00:30]} Kc6 {[%emt 0:00:05]} 85. Kc3 {[%emt 0:00:13]} Kb5 {[%emt 0:00:10]} 86. Kb3 {[%emt 0:00:13]} Kb6 {[%emt 0:00:05]} 87. Ka4 {[%emt 0:00:13]} Ka6 {[%emt 0:00:04]} 88. Kb3 {[%emt 0:00:31]} Kb5 {[%emt 0:00:06]} 89. Kc3 {[%emt 0:00:06]} Kb6 {[%emt 0:00:03]} 90. Kc4 {[%emt 0:00:05]} Kc6 {[%emt 0:00:03]} 91. b5+ {[%emt 0:00:10]} Kb6 {[%emt 0:00:08]} 92. Kb4 {[%emt 0:00:11]} Kb7 {[%emt 0:00:03]} 93. Kb3 {[%emt 0:00:43]} Kb6 {[%emt 0:00:09]} 94. Kc4 {[%emt 0:00:11]} Kb7 {[%emt 0:00:05]} 95. Kc5 {[%emt 0:00:20]} Kc7 {[%emt 0:00:04]} 96. b6+ {[%emt 0:00:11]} Kb7 {[%emt 0:00:04]} 97. Kb5 {[%emt 0:00:31]} Kb8 {[%emt 0:00:08]} 98. Kc6 {[%emt 0:00:10]} Kc8 {[%emt 0:00:08]} 99. b7+ {[%emt 0:00:17]} Kb8 {[%emt 0:00:05]} 100. Kd5 {[%emt 0:00:18]} Kxb7 {[%emt 0:00:06]} 1/2-1/2

[Event "98th Caplin Hastings Masters 2024-25"]
[Site "Hastings"]
[Date "2024.12.29"]
[Round "3.51"]
[White "Swiatkowski, Dominik"]
[Black "Graham, Oliver"]
[Result "1-0"]
[ECO "C93"]
[WhiteElo "1744"]
[BlackElo "1789"]
[Annotator "NA RC"]
[PlyCount "73"]
[EventDate "2024.12.23"]
[EventType "swiss"]
[EventCountry "ENG"]
[SourceTitle "playchess.com"]
[Source "ChessBase"]
[SourceQuality "1"]
[TimeControl "5400+30"]

1. e4 {[%emt 0:00:02]} e5 {[%emt 0:00:05]} 2. Nf3 {[%emt 0:00:04]} Nc6 {[%emt 0:00:06]} 3. Bb5 {[%emt 0:00:04]} a6 {[%emt 0:00:07]} 4. Ba4 {[%emt 0:00:04]} Nf6 {[%emt 0:00:11]} 5. O-O {[%emt 0:00:07]} b5 {[%emt 0:00:22]} 6. Bb3 {[%emt 0:00:05]} Be7 {[%emt 0:00:17]} 7. Re1 {[%emt 0:01:27]} O-O {[%emt 0:00:23]} 8. h3 {[%emt 0:00:07]} Bb7 {[%emt 0:00:58]} 9. d3 {[%emt 0:00:07]} d6 {[%emt 0:00:39]} 10. c3 {[%emt 0:08:52]} h6 {[%emt 0:01:49]} 11. Nbd2 {[%emt 0:01:46]} Nh7 {[%emt 0:01:05]} 12. Nf1 {[%emt 0:04:43]} Nb8 {[%emt 0:02:56]} 13. Ng3 {[%emt 0:03:15]} c5 {[%emt 0:00:54]} 14. a4 {[%emt 0:07:12]} Nd7 {[%emt 0:01:01]} 15. Be3 {[%emt 0:04:07]} Ng5 {[%emt 0:01:35]} 16. Nf5 {[%emt 0:05:12]} Kh7 {[%emt 0:09:29]} 17. Nxg5+ {[%emt 0:06:15]} Bxg5 {[%emt 0:06:30]} 18. Nxd6 {[%emt 0:03:39]} Bc6 {[%emt 0:02:34]} 19. Nxf7 {[%emt 0:01:51]} Rxf7 {[%emt 0:03:23]} 20. Bxf7 {[%emt 0:00:13]} bxa4 {[%emt 0:00:23]} 21. Qh5 {[%emt 0:01:38]} Qf6 {[%emt 0:02:20]} 22. Bxg5 {[%emt 0:00:25]} Qxg5 {[%emt 0:00:17]} 23. Qxg5 {[%emt 0:00:11]} hxg5 {[%emt 0:00:08]} 24. Bd5 {[%emt 0:01:12]} Bxd5 {[%emt 0:02:37]} 25. exd5 {[%emt 0:00:05]} Rb8 {[%emt 0:00:28]} 26. Rxa4 {[%emt 0:00:46]} Rb6 {[%emt 0:00:30]} 27. b4 {[%emt 0:01:39]} Kg6 {[%emt 1:02:53]} 28. Rea1 {[%emt 0:00:23]} cxb4 {[%emt 0:00:00]} 29. Rxa6 {[%emt 0:00:36]} Kf7 {[%emt 0:00:00]} 30. Rxb6 {[%emt 0:00:06]} Nxb6 {[%emt 0:00:00]} 31. c4 {[%emt 0:01:20]} e4 {[%emt 0:00:00]} 32. dxe4 {[%emt 0:00:38]} Nxc4 {[%emt 0:00:00]} 33. Rb1 {[%emt 0:00:32]} b3 {[%emt 0:00:00]} 34. Rxb3 {[%emt 0:00:08]} Kf6 {[%emt 0:00:00]} 35. Rc3 {[%emt 0:00:24]} Nd6 {[%emt 0:00:00]} 36. Rc6 {[%emt 0:00:06]} Ke5 {[%emt 0:00:00]} 37. Rxd6 {[%emt 0:00:00]} 1-0

[Event "98th Caplin Hastings Masters 2024-25"]
[Site "Hastings"]
[Date "2024.12.29"]
[Round "3.52"]
[White "Raffin-Sumyk, Piermael"]
[Black "Prudent, Sylvio"]
[Result "1-0"]
[ECO "B09"]
[WhiteElo "1512"]
[BlackElo "1780"]
[Annotator "NA RC"]
[PlyCount "57"]
[EventDate "2024.12.23"]
[EventType "swiss"]
[EventCountry "ENG"]
[SourceTitle "playchess.com"]
[Source "ChessBase"]
[SourceQuality "1"]
[TimeControl "5400+30"]

1. e4 {[%emt 0:00:02]} d6 {[%emt 0:00:17]} 2. d4 {[%emt 0:00:05]} Nf6 {[%emt 0:00:04]} 3. Nc3 {[%emt 0:00:11]} g6 {[%emt 0:00:07]} 4. f4 {[%emt 0:00:17]} Bg7 {[%emt 0:00:06]} 5. Nf3 {[%emt 0:00:31]} O-O {[%emt 0:00:09]} 6. Bd3 {[%emt 0:00:30]} Na6 {[%emt 0:00:10]} 7. e5 {[%emt 0:03:04]} dxe5 {[%emt 0:06:04]} 8. dxe5 {[%emt 0:01:14]} Nd7 {[%emt 0:07:49]} 9. Qe2 {[%emt 0:03:38]} Nb4 {[%emt 0:02:51]} 10. Bc4 {[%emt 0:03:40]} Nb6 {[%emt 0:02:56]} 11. Bb3 {[%emt 0:07:26]} Bg4 {[%emt 0:11:44]} 12. O-O {[%emt 0:01:26]} c6 {[%emt 0:01:07]} 13. Rd1 {[%emt 0:01:05]} Qc7 {[%emt 0:00:37]} 14. h3 {[%emt 0:00:47]} Bxf3 {[%emt 0:00:44]} 15. Qxf3 {[%emt 0:00:18]} Rad8 {[%emt 0:00:10]} 16. Be3 {[%emt 0:01:15]} Na6 {[%emt 0:26:45]} 17. e6 {[%emt 0:06:18]} f5 {[%emt 0:01:29]} 18. Kh1 {[%emt 0:02:05]} Rxd1+ {[%emt 0:06:40]} 19. Rxd1 {[%emt 0:00:13]} Rd8 {[%emt 0:00:04]} 20. Qe2 {[%emt 0:04:31]} Bf6 {[%emt 0:09:36]} 21. Bxb6 {[%emt 0:03:19]} Qxb6 {[%emt 0:00:31]} 22. Rd7 {[%emt 0:00:35]} Nc5 {[%emt 0:01:24]} 23. Na4 {[%emt 0:07:22]} Nxa4 {[%emt 0:01:23]} 24. Bxa4 {[%emt 0:00:07]} Rxd7 {[%emt 0:01:51]} 25. exd7 {[%emt 0:00:18]} Qd4 {[%emt 0:00:51]} 26. Qe6+ {[%emt 0:01:12]} Kf8 {[%emt 0:00:28]} 27. Bb3 {[%emt 0:00:40]} Kg7 {[%emt 0:00:38]} 28. Qg8+ {[%emt 0:20:46]} Kh6 {[%emt 0:00:11]} 29. d8=N {[%emt 0:00:20]} 1-0

[Event "98th Caplin Hastings Masters 2024-25"]
[Site "Hastings"]
[Date "2024.12.30"]
[Round "4.1"]
[White "Xue, Haowen"]
[Black "Boyer, Mahel"]
[Result "1-0"]
[ECO "A37"]
[WhiteElo "2502"]
[BlackElo "2526"]
[Annotator "RC"]
[PlyCount "77"]
[EventDate "2024.12.23"]
[EventType "swiss"]
[EventCountry "ENG"]
[SourceTitle "playchess.com"]
[Source "ChessBase"]
[SourceQuality "1"]
[TimeControl "5400+30"]

1. c4 {[%emt 0:00:08]} g6 {[%emt 0:03:44]} 2. Nc3 {[%emt 0:00:12]} Bg7 {[%emt 0:00:07]} 3. Nf3 {[%emt 0:00:14]} c5 {[%emt 0:06:45]} 4. g3 {[%emt 0:00:17]} Nc6 {[%emt 0:00:19]} 5. Bg2 {[%emt 0:00:05]} e6 {[%emt 0:00:19]} 6. h4 {[%emt 0:02:44]} h6 {[%emt 0:00:59]} 7. e3 {[%emt 0:00:45]} Nge7 {[%emt 0:01:32]} 8. O-O {[%emt 0:01:42]} O-O {[%emt 0:02:20]} 9. d4 {[%emt 0:00:27]} b6 {[%emt 0:03:23]} 10. Qa4 {[%emt 0:20:02]} Bb7 {[%emt 0:28:15]} 11. Rd1 {[%emt 0:12:50]} d5 {[%emt 0:03:51]} 12. dxc5 {[%emt 0:03:30]} bxc5 {[%emt 0:00:19]} 13. Qb5 {[%emt 0:00:17]} Qa5 {[%emt 0:05:24]} 14. Na4 {[%emt 0:13:56]} dxc4 {[%emt 0:15:28]} 15. Qxa5 {[%emt 0:00:22]} Nxa5 {[%emt 0:00:02]} 16. Bd2 {[%emt 0:02:19]} Bc6 {[%emt 0:16:28]} 17. Nxc5 {[%emt 0:00:20]} Bxb2 {[%emt 0:00:14]} 18. Bxa5 {[%emt 0:00:42]} Rac8 {[%emt 0:00:30]} 19. e4 {[%emt 0:15:13]} Ba3 {[%emt 0:07:26]} 20. Na6 {[%emt 0:12:19]} Bxe4 {[%emt 0:01:20]} 21. Ne1 {[%emt 0:06:20]} Bxg2 {[%emt 0:00:32]} 22. Kxg2 {[%emt 0:00:09]} Rc6 {[%emt 0:00:18]} 23. Nb4 {[%emt 0:00:16]} Rc5 {[%emt 0:00:19]} 24. Bd8 {[%emt 0:00:06]} Nf5 {[%emt 0:02:05]} 25. Nbc2 {[%emt 0:01:15]} Bb2 {[%emt 0:00:26]} 26. Rab1 {[%emt 0:00:07]} Rc8 {[%emt 0:00:34]} 27. Rxb2 {[%emt 0:01:00]} Rfxd8 {[%emt 0:00:01]} 28. Rxd8+ {[%emt 0:00:16]} Rxd8 {[%emt 0:00:01]} 29. Rb4 {[%emt 0:00:32]} Nd6 {[%emt 0:00:56]} 30. Ne3 {[%emt 0:01:19]} Rc8 {[%emt 0:00:16]} 31. Ra4 {[%emt 0:01:11]} Rc7 {[%emt 0:00:22]} 32. N1c2 {[%emt 0:00:28]} Kg7 {[%emt 0:00:34]} 33. Kf3 {[%emt 0:01:07]} h5 {[%emt 0:01:07]} 34. Ra6 {[%emt 0:00:30]} Nc8 {[%emt 0:00:43]} 35. Nd4 {[%emt 0:01:18]} c3 {[%emt 0:00:30]} 36. Rc6 {[%emt 0:00:45]} Rxc6 {[%emt 0:00:13]} 37. Nxc6 {[%emt 0:00:02]} Nd6 {[%emt 0:00:47]} 38. Nxa7 {[%emt 0:00:30]} Nc4 {[%emt 0:00:30]} 39. Nb5 {[%emt 0:00:18]} 1-0